bitfinex-derivatives/quotes_BNBF0:USTF0_20250810
["timestamp","ask_amount","ask_price","bid_price","bid_amount"]
[1754834158065,1.108171,797.74,797.02,0.2179154]
[1754834158268,1.108171,797.76,797.02,0.2179154]
[1754834159266,1.108171,797.77,797.02,0.2179154]
[1754834160075,1.108171,797.78,797.02,0.2179154]
[1754834160371,1.108171,797.77,797.02,0.2179154]
[1754834161576,1.108171,797.79,797.02,0.2179154]
[1754834162373,1.108171,797.8,797.02,0.2179154]
[1754834163074,1.108171,797.72,797.02,0.2179154]
[1754834163478,1.108171,797.73,797.02,0.2179154]
[1754834163677,1.108171,797.72,797.02,0.2179154]
[1754834165174,1.108171,797.73,797.02,0.2179154]
[1754834165378,1.108171,797.72,797.02,0.2179154]
[1754834167273,1.108171,797.71,797.02,0.2179154]
[1754834168081,1.108171,797.7,797.02,0.2179154]
[1754834168279,1.108171,797.71,797.02,0.2179154]
[1754834168579,1.108171,797.72,797.02,0.2179154]
[1754834171276,1.108171,797.74,797.02,0.2179154]
[1754834172881,1.108171,797.63,797.02,0.2179154]
[1754834173181,1.108171,797.64,797.02,0.2179154]
[1754834173381,1.108171,797.63,797.02,0.2179154]
[1754834174480,3.91401,798.91,797.02,0.2179154]
[1754834174481,1.108171,797.59,797.02,0.2179154]
[1754834174882,1.108171,797.49,797.02,0.2179154]
[1754834175382,1.108171,797.5,797.02,0.2179154]
[1754834175678,1.108171,797.44,797.02,0.2179154]
[1754834175879,1.108171,797.43,797.02,0.2179154]
[1754834176378,1.108171,797.4,797.02,0.2179154]
[1754834177482,1.108171,797.41,797.02,0.2179154]
[1754834177977,1.108171,797.47,797.02,0.2179154]
[1754834178183,1.108171,797.46,797.02,0.2179154]
[1754834178483,1.108171,797.47,797.02,0.2179154]
[1754834179778,1.108171,797.46,797.02,0.2179154]
[1754834182884,1.108171,797.51,797.02,0.2179154]
[1754834184281,1.108171,797.5,797.02,0.2179154]
[1754834184481,1.108171,797.51,797.02,0.2179154]
[1754834184685,1.6622565,797.7,797.02,0.2179154]
[1754834184686,1.108171,797.5,797.02,0.2179154]
[1754834184888,1.108171,797.51,797.02,0.2179154]
[1754834185385,1.108171,797.54,797.02,0.2179154]
[1754834186185,1.108171,797.53,797.02,0.2179154]
[1754834187286,1.108171,797.52,797.02,0.2179154]
[1754834187585,1.108171,797.53,797.02,0.2179154]
[1754834187785,1.108171,797.5,797.02,0.2179154]
[1754834188387,1.108171,797.49,797.02,0.2179154]
[1754834189084,1.108171,797.5,797.02,0.2179154]
[1754834189284,1.108171,797.49,797.02,0.2179154]
[1754834190182,1.108171,797.48,797.02,0.2179154]
[1754834191285,1.108171,797.46,797.02,0.2179154]
[1754834191987,2.7957214,798.4,797.02,0.2179154]
[1754834191988,1.108171,797.4,797.02,0.2179154]
[1754834192388,1.108171,797.39,797.02,0.2179154]
[1754834192785,1.108171,797.4,797.02,0.2179154]
[1754834193285,1.108171,797.39,797.02,0.2179154]
[1754834194185,1.108171,797.4,797.02,0.2179154]
[1754834195088,1.108171,797.43,797.02,0.2179154]
[1754834195289,1.108171,797.42,797.02,0.2179154]
[1754834195488,1.108171,797.34,797.02,0.2179154]
[1754834195884,1.108171,797.3,797.02,0.2179154]
[1754834196285,1.108171,797.29,797.02,0.2179154]
[1754834196589,1.108171,797.25,797.02,0.2179154]
[1754834196987,1.108171,797.24,797.02,0.2179154]
[1754834197488,1.108171,797.23,797.02,0.2179154]
[1754834197884,1.108171,797.22,797.02,0.2179154]
[1754834198089,1.108171,797.23,797.02,0.2179154]
[1754834198689,1.108171,797.24,797.02,0.2179154]
[1754834199589,1.108171,797.26,797.02,0.2179154]
[1754834200088,1.108171,797.28,797.02,0.2179154]
[1754834200292,1.108171,797.31,797.02,0.2179154]
[1754834202088,1.108171,797.31,796.19,0.5]
[1754834202992,0.82964505,797.12,796.19,0.5]
[1754834203789,0.82964505,797.11,796.19,0.5]
[1754834204194,0.82964505,797.13,796.19,0.5]
[1754834204390,0.82964505,797.15,796.19,0.5]
[1754834204889,0.82964505,797.11,796.19,0.5]
[1754834205291,0.82964505,797.13,796.19,0.5]
[1754834205790,0.82964505,797.28,796.19,0.5]
[1754834205989,0.82964505,797.3,796.19,0.5]
[1754834206191,0.82964505,797.21,796.19,0.5]
[1754834206991,0.82964505,797.18,796.19,0.5]
[1754834207194,0.82964505,797.13,796.19,0.5]
[1754834207389,0.82964505,797.12,796.43,0.21809157]
[1754834207594,0.82964505,797.02,796.43,0.21809157]
[1754834208195,1.108171,797.2,796.43,0.21809157]
[1754834208196,0.82964505,796.99,796.43,0.21809157]
[1754834209092,0.62964505,796.97,796.43,0.21809157]
[1754834210298,1.108171,797.12,796.43,0.21809157]
[1754834210597,1.108171,797.2,796.43,0.21809157]
[1754834211198,1.108171,797.19,796.43,0.21809157]
[1754834213197,1.6622565,797.37,796.43,0.21809157]
[1754834213198,1.108171,797.18,796.43,0.21809157]
[1754834215302,1.108171,797.2,796.43,0.21809157]
[1754834215598,1.108171,797.21,796.43,0.21809157]
[1754834216202,1.108171,797.19,796.43,0.21809157]
[1754834216402,1.108171,797.16,796.43,0.21809157]
[1754834216699,1.108171,797.18,796.43,0.21809157]
[1754834217202,2.7957214,798.2,796.43,0.21809157]
[1754834217203,1.108171,797.15,796.43,0.21809157]
[1754834217399,1.108171,797.16,796.43,0.21809157]
[1754834218102,1.108171,797.15,796.43,0.21809157]
[1754834218398,1.108171,797.18,796.43,0.21809157]
[1754834219002,1.108171,797.15,796.43,0.21809157]
[1754834219202,1.6622565,797.35,796.43,0.21809157]
[1754834219203,1.108171,797.14,796.43,0.21809157]
[1754834221202,1.108171,797.15,796.43,0.21809157]
[1754834223100,1.108171,797.14,796.43,0.21809157]
[1754834223504,1.108171,797.08,796.43,0.21809157]
[1754834224205,1.108171,797.09,796.43,0.21809157]
[1754834224500,1.108171,797.08,796.43,0.21809157]
[1754834224700,1.108171,797.05,796.43,0.21809157]
[1754834225101,1.108171,797.07,796.43,0.21809157]
[1754834225300,1.108171,797.05,796.43,0.21809157]
[1754834226501,1.108171,797.04,796.43,0.21809157]
[1754834227205,1.108171,797.05,796.43,0.21809157]
[1754834227809,1.108171,797.16,796.43,0.21809157]
[1754834228007,1.108171,797.34,796.43,0.21809157]
[1754834228408,1.108171,797.33,796.43,0.21809157]
[1754834228609,1.108171,797.35,796.43,0.21809157]
[1754834229108,1.108171,797.27,796.43,0.21809157]
[1754834229808,1.108171,797.28,796.43,0.21809157]
[1754834231406,1.108171,797.3,796.43,0.21809157]
[1754834232207,1.108171,797.29,796.43,0.21809157]
[1754834233310,1.6622565,797.48,796.43,0.21809157]
[1754834233311,1.108171,797.28,796.43,0.21809157]
[1754834233607,1.108171,797.29,796.43,0.21809157]
[1754834234211,1.108171,797.27,796.43,0.21809157]
[1754834235415,1.108171,797.33,796.43,0.21809157]
[1754834236112,1.108171,797.32,796.43,0.21809157]
[1754834238013,1.108171,797.29,796.43,0.21809157]
[1754834238413,1.108171,797.26,796.43,0.21809157]
[1754834239815,1.108171,797.25,796.43,0.21809157]
[1754834240219,1.108171,797.26,796.43,0.21809157]
[1754834240415,1.108171,797.24,796.43,0.21809157]
[1754834241119,1.108171,797.19,796.43,0.21809157]
[1754834241614,1.108171,797.18,796.43,0.21809157]
[1754834242316,2.7957214,797.9,796.43,0.21809157]
[1754834242317,1.108171,797.39,796.43,0.21809157]
[1754834242519,2.7957214,797.9,796.43,0.21809157]
[1754834242520,1.108171,797.36,796.43,0.21809157]
[1754834242816,1.108171,797.38,796.43,0.21809157]
[1754834243218,1.108171,797.37,796.43,0.21809157]
[1754834244822,1.108171,797.44,796.43,0.21809157]
[1754834245420,1.108171,797.37,796.43,0.21809157]
[1754834246424,1.108171,797.35,796.43,0.21809157]
[1754834247227,1.108171,797.34,796.43,0.21809157]
[1754834251027,1.108171,797.3,796.43,0.21809157]
[1754834251526,1.6622565,797.53,796.43,0.21809157]
[1754834251527,1.108171,797.29,796.43,0.21809157]
[1754834252428,1.108171,797.24,796.43,0.21809157]
[1754834252729,1.108171,797.22,796.43,0.21809157]
[1754834252926,1.108171,797.2,796.43,0.21809157]
[1754834253226,1.108171,797.05,796.43,0.21809157]
[1754834253430,1.108171,797.04,796.43,0.21809157]
[1754834253629,1.108171,797.02,796.43,0.21809157]
[1754834253827,2.7957214,797.91,796.43,0.21809157]
[1754834253828,1.108171,797.07,796.43,0.21809157]
[1754834254032,1.108171,797.01,796.43,0.21809157]
[1754834254328,1.108171,797.02,796.43,0.21809157]
[1754834254629,1.108171,797.03,796.43,0.21809157]
[1754834254836,1.108171,797.12,796.43,0.21809157]
[1754834255028,1.6622565,797.32,796.43,0.21809157]
[1754834255029,1.108171,797.23,796.43,0.21809157]
[1754834255530,1.108171,797.24,796.43,0.21809157]
[1754834256431,1.108171,797.23,796.43,0.21809157]
[1754834257535,1.108171,797.24,796.43,0.21809157]
[1754834258035,1.108171,797.23,796.43,0.21809157]
[1754834261836,1.108171,797.22,796.43,0.21809157]
[1754834262034,1.108171,796.79,796.43,0.21809157]
[1754834262337,1.108171,796.78,796.43,0.21809157]
[1754834262837,1.108171,796.79,796.43,0.21809157]
[1754834263239,1.108171,796.72,796.43,0.21809157]
[1754834264239,3.91401,797.81,796.43,0.21809157]
[1754834264240,1.108171,796.73,796.43,0.21809157]
[1754834264439,1.108171,796.71,796.43,0.21809157]
[1754834265041,1.108171,796.88,796.43,0.21809157]
[1754834265239,1.108171,796.89,796.43,0.21809157]
[1754834266339,1.108171,796.9,796.43,0.21809157]
[1754834268142,1.108171,796.91,796.43,0.21809157]
[1754834268543,1.108171,796.96,796.43,0.21809157]
[1754834268741,1.108171,796.98,796.43,0.21809157]
[1754834269145,0.83070504,796.76,796.43,0.21809157]
[1754834269345,1.6622565,797.21,796.43,0.21809157]
[1754834269346,0.83070504,796.74,796.43,0.21809157]
[1754834269546,0.83070504,796.76,796.43,0.21809157]
[1754834270547,0.83070504,796.77,796.43,0.21809157]
[1754834270748,0.83070504,796.76,796.43,0.21809157]
[1754834270948,0.83070504,796.77,796.43,0.21809157]
[1754834272349,1.108171,797.0,796.43,0.21809157]
[1754834272350,0.83070504,796.78,796.43,0.21809157]
[1754834274152,0.83070504,796.79,796.43,0.21809157]
[1754834274353,0.83070504,796.7,796.43,0.21809157]
[1754834274552,0.83070504,796.72,796.43,0.21809157]
[1754834274848,0.63070504,796.72,796.43,0.21809157]
[1754834275352,1.108171,796.89,796.43,0.21809157]
[1754834275554,1.108171,796.9,796.43,0.21809157]
[1754834275853,1.108171,796.92,796.43,0.21809157]
[1754834276450,1.108171,796.93,796.43,0.21809157]
[1754834276650,1.108171,796.94,796.43,0.21809157]
[1754834276851,1.108171,796.98,796.43,0.21809157]
[1754834277154,1.108171,797.16,796.43,0.21809157]
[1754834277354,3.91401,798.22,796.43,0.21809157]
[1754834277355,1.108171,797.08,796.43,0.21809157]
[1754834277555,1.108171,796.97,796.43,0.21809157]
[1754834277752,1.108171,796.95,796.43,0.21809157]
[1754834278257,1.108171,796.92,796.43,0.21809157]
[1754834278552,1.108171,796.93,796.43,0.21809157]
[1754834279554,1.108171,796.94,796.43,0.21809157]
[1754834280754,1.108171,796.81,796.43,0.21809157]
[1754834280954,1.108171,796.74,796.43,0.21809157]
[1754834281555,1.108171,796.7,796.43,0.21809157]
[1754834281758,1.108171,796.69,796.43,0.21809157]
[1754834281960,1.108171,796.66,796.43,0.21809157]
[1754834282161,1.108171,796.67,796.43,0.21809157]
[1754834283658,1.108171,796.66,796.43,0.21809157]
[1754834284263,1.108171,796.67,796.43,0.21809157]
[1754834284760,1.108171,796.66,796.43,0.21809157]
[1754834285260,1.108171,796.67,796.43,0.21809157]
[1754834285462,1.108171,796.72,796.43,0.21809157]
[1754834286062,1.108171,796.73,796.43,0.21809157]
[1754834286258,1.108171,796.74,796.43,0.21809157]
[1754834287159,1.108171,796.75,796.43,0.21809157]
[1754834289962,1.108171,796.71,796.43,0.21809157]
[1754834290164,1.108171,796.69,796.43,0.21809157]
[1754834290364,1.108171,796.71,796.43,0.21809157]
[1754834290564,1.108171,796.7,796.43,0.21809157]
[1754834290765,1.108171,796.78,796.43,0.21809157]
[1754834291764,1.108171,796.77,796.43,0.21809157]
[1754834292966,1.108171,796.81,796.43,0.21809157]
[1754834293269,1.108171,796.82,796.43,0.21809157]
[1754834293469,1.108171,796.81,796.43,0.21809157]
[1754834294365,1.108171,796.82,796.43,0.21809157]
[1754834294566,1.108171,796.81,796.43,0.21809157]
[1754834295466,1.108171,796.77,796.43,0.21809157]
[1754834296170,1.108171,796.73,796.43,0.21809157]
[1754834296469,1.108171,796.69,796.43,0.21809157]
[1754834297267,1.108171,796.68,796.43,0.21809157]
[1754834298166,1.108171,796.7,796.43,0.21809157]
[1754834298370,1.108171,796.67,796.43,0.21809157]
[1754834298570,1.108171,796.6,796.43,0.21809157]
[1754834299069,1.108171,796.58,796.43,0.21809157]
[1754834299270,2.7957214,797.28,796.43,0.21809157]
[1754834299271,1.108171,796.59,796.43,0.21809157]
[1754834299569,1.108171,796.76,796.43,0.21809157]
[1754834299966,1.108171,796.78,796.43,0.21809157]
[1754834301172,1.108171,796.77,796.43,0.21809157]
[1754834301573,1.108171,796.9,796.43,0.21809157]
[1754834301773,1.108171,796.91,796.43,0.21809157]
[1754834304873,1.108171,796.9,796.43,0.21809157]
[1754834305478,1.108171,796.87,796.43,0.21809157]
[1754834305678,1.108171,796.86,796.43,0.21809157]
[1754834305978,1.108171,796.84,796.43,0.21809157]
[1754834306177,1.108171,796.83,796.43,0.21809157]
[1754834306378,1.108171,796.81,796.43,0.21809157]
[1754834306679,1.108171,796.45,796.43,0.21809157]
[1754834306872,1.6622565,796.62,796.43,0.21809157]
[1754834307077,1.6622565,796.63,796.43,0.21809157]
[1754834307278,1.6622565,796.6,796.43,0.21809157]
[1754834307573,1.6622565,796.61,796.43,0.21809157]
[1754834307978,1.6622565,796.59,796.43,0.21809157]
[1754834308278,1.6622565,796.57,796.43,0.21809157]
[1754834308474,2.7957214,797.45,796.43,0.21809157]
[1754834308777,2.7957214,797.16,796.43,0.21809157]
[1754834309079,0.70971808,797.15,796.43,0.21809157]
[1754834309379,0.70971808,797.14,794.87,0.5]
[1754834309586,1.1028826,796.15,794.87,0.5]
[1754834309982,1.1028826,796.15,795.43,0.21834609]
[1754834310183,1.1028826,796.16,794.87,0.5]
[1754834311184,1.1028826,796.11,794.87,0.5]
[1754834311388,1.1028826,796.09,795.19,0.21841667]
[1754834312285,1.1028826,796.26,795.19,0.21841667]
[1754834313090,1.1028826,796.22,795.19,0.21841667]
[1754834313291,1.1028826,796.24,795.19,0.21841667]
[1754834313488,1.1028826,796.23,795.19,0.21841667]
[1754834313788,1.1028826,796.25,795.19,0.21841667]
[1754834314194,1.1028826,796.26,795.19,0.21841667]
[1754834315393,1.1028826,796.28,795.19,0.21841667]
[1754834315594,1.1028826,796.31,795.19,0.21841667]
[1754834315791,1.1028826,796.27,795.19,0.21841667]
[1754834315989,1.1028826,796.23,795.19,0.21841667]
[1754834316290,1.1028826,796.1,795.19,0.21841667]
[1754834316590,1.1028826,796.15,795.19,0.21841667]
[1754834316894,1.1028826,796.14,795.19,0.21841667]
[1754834317094,1.1028826,796.16,795.19,0.21841667]
[1754834318296,1.1028826,796.17,795.19,0.21841667]
[1754834320292,1.1028826,796.18,795.19,0.21841667]
[1754834320797,1.1028826,796.16,795.19,0.21841667]
[1754834321097,1.1028826,796.23,795.19,0.21841667]
[1754834321298,1.1028826,796.24,795.19,0.21841667]
[1754834321494,1.654324,796.46,795.19,0.21841667]
[1754834321495,1.1028826,796.08,795.19,0.21841667]
[1754834321695,1.1028826,796.04,795.19,0.21841667]
[1754834321897,1.1028826,796.05,795.19,0.21841667]
[1754834322300,1.1028826,796.07,795.19,0.21841667]
[1754834322804,1.1028826,796.1,795.19,0.21841667]
[1754834323104,1.1028826,796.13,795.19,0.21841667]
[1754834323403,1.1028826,796.2,795.19,0.21841667]
[1754834323599,1.1028826,796.16,795.19,0.21841667]
[1754834323804,1.1028826,796.22,795.19,0.21841667]
[1754834324105,1.1028826,796.2,795.19,0.21841667]
[1754834324404,1.1028826,796.16,795.19,0.21841667]
[1754834324600,1.1028826,796.17,795.19,0.21841667]
[1754834325203,1.1028826,796.18,795.19,0.21841667]
[1754834325504,1.1028826,796.21,795.19,0.21841667]
[1754834325702,1.1028826,796.05,795.19,0.21841667]
[1754834326201,1.1028826,796.07,795.19,0.21841667]
[1754834326400,1.1028826,796.18,795.19,0.21841667]
[1754834326701,1.1028826,796.12,795.19,0.21841667]
[1754834327400,1.1028826,796.08,795.19,0.21841667]
[1754834328104,1.1028826,796.1,795.19,0.21841667]
[1754834329205,1.1028826,796.11,795.19,0.21841667]
[1754834329802,1.1028826,796.17,795.19,0.21841667]
[1754834330005,1.1028826,796.12,795.19,0.21841667]
[1754834330206,1.1028826,796.13,795.19,0.21841667]
[1754834330401,1.1028826,796.2,795.19,0.21841667]
[1754834331103,1.1028826,796.21,795.19,0.21841667]
[1754834331302,1.1028826,796.13,795.19,0.21841667]
[1754834331605,3.91401,797.79,795.19,0.21841667]
[1754834331606,1.1028826,796.11,795.19,0.21841667]
[1754834332006,1.1028826,796.12,795.19,0.21841667]
[1754834332206,1.1028826,796.13,795.19,0.21841667]
[1754834332402,1.1028826,796.04,795.19,0.21841667]
[1754834332812,1.1028826,796.03,795.19,0.21841667]
[1754834333203,2.7957214,797.0,795.19,0.21841667]
[1754834333204,1.1028826,796.04,795.19,0.21841667]
[1754834333805,1.1028826,796.05,795.19,0.21841667]
[1754834334108,1.1028826,796.04,795.19,0.21841667]
[1754834334304,1.1028826,796.05,795.19,0.21841667]
[1754834334506,1.1028826,796.04,795.19,0.21841667]
[1754834334706,0.81925183,795.85,795.19,0.21841667]
[1754834335311,0.81925183,795.86,795.19,0.21841667]
[1754834335509,0.81925183,795.76,795.19,0.21841667]
[1754834336004,2.7957214,796.9,795.19,0.21841667]
[1754834336005,0.81925183,795.75,795.19,0.21841667]
[1754834336205,0.81925183,795.76,795.19,0.21841667]
[1754834336609,0.81925183,795.77,795.19,0.21841667]
[1754834337008,0.81925183,795.78,795.19,0.21841667]
[1754834337206,0.81925183,795.76,795.19,0.21841667]
[1754834338009,0.81925183,795.74,795.19,0.21841667]
[1754834338207,0.81925183,795.75,795.19,0.21841667]
[1754834338508,0.81925183,795.74,795.19,0.21841667]
[1754834338808,0.81925183,795.78,795.19,0.21841667]
[1754834339007,0.81925183,795.76,795.19,0.21841667]
[1754834339211,0.81925183,795.77,795.19,0.21841667]
[1754834340813,0.81925183,795.75,795.19,0.21841667]
[1754834341413,0.81925183,795.74,795.19,0.21841667]
[1754834341919,0.81925183,795.75,795.19,0.21841667]
[1754834342510,0.81925183,795.72,795.19,0.21841667]
[1754834343814,0.81925183,795.7,795.19,0.21841667]
[1754834344316,0.81925183,795.68,795.19,0.21841667]
[1754834344517,0.81925183,795.69,795.19,0.21841667]
[1754834345115,0.81925183,795.68,795.19,0.21841667]
[1754834345619,0.81925183,795.7,795.19,0.21841667]
[1754834345820,0.81925183,795.65,795.19,0.21841667]
[1754834346315,0.81925183,795.64,795.19,0.21841667]
[1754834348222,0.81925183,795.63,795.19,0.21841667]
[1754834348422,0.81925183,795.64,795.19,0.21841667]
[1754834349019,0.81925183,795.65,795.19,0.21841667]
[1754834349219,0.81925183,795.64,795.19,0.21841667]
[1754834349519,0.81925183,795.81,795.19,0.21841667]
[1754834349722,0.81925183,795.84,795.19,0.21841667]
[1754834350317,0.81925183,795.83,795.19,0.21841667]
[1754834351224,0.81925183,795.82,795.19,0.21841667]
[1754834351619,0.81925183,795.83,795.19,0.21841667]
[1754834351920,0.81925183,795.92,795.19,0.21841667]
[1754834352222,0.81925183,795.91,795.19,0.21841667]
[1754834353220,1.1028826,796.13,795.19,0.21841667]
[1754834353221,0.81925183,795.9,795.19,0.21841667]
[1754834353723,0.81925183,796.04,795.19,0.21841667]
[1754834353921,0.81925183,796.03,795.19,0.21841667]
[1754834354124,0.81925183,796.01,795.19,0.21841667]
[1754834354325,0.81925183,796.0,795.19,0.21841667]
[1754834354720,0.81925183,795.99,795.19,0.21841667]
[1754834355318,0.81925183,795.98,795.19,0.21841667]
[1754834355524,0.81925183,795.97,795.19,0.21841667]
[1754834355821,0.81925183,796.04,795.19,0.21841667]
[1754834356022,0.81925183,796.05,795.19,0.21841667]
[1754834356220,0.81925183,795.97,795.19,0.21841667]
[1754834356423,0.81925183,795.95,795.19,0.21841667]
[1754834356625,0.81925183,795.88,795.19,0.21841667]
[1754834356827,0.81925183,795.82,795.19,0.21841667]
[1754834357226,0.81925183,795.81,795.19,0.21841667]
[1754834357423,0.81925183,795.82,795.19,0.21841667]
[1754834357724,0.81925183,795.79,795.19,0.21841667]
[1754834358328,0.81925183,795.78,795.19,0.21841667]
[1754834358524,0.81925183,795.77,795.19,0.21841667]
[1754834359330,0.81925183,795.75,795.19,0.21841667]
[1754834359928,0.81925183,795.73,795.19,0.21841667]
[1754834360228,0.81925183,795.81,795.19,0.21841667]
[1754834360528,0.81925183,795.83,795.19,0.21841667]
[1754834361024,0.81925183,795.91,795.19,0.21841667]
[1754834361229,0.81925183,795.89,795.19,0.21841667]
[1754834362231,0.81925183,795.87,795.19,0.21841667]
[1754834362431,0.81925183,795.86,795.19,0.21841667]
[1754834362731,0.81925183,795.89,795.19,0.21841667]
[1754834363027,0.81925183,795.9,795.19,0.21841667]
[1754834363226,0.81925183,795.88,795.19,0.21841667]
[1754834363428,0.81925183,795.87,795.19,0.21841667]
[1754834363828,0.81925183,795.88,795.19,0.21841667]
[1754834364026,0.81925183,795.89,795.19,0.21841667]
[1754834364328,0.81925183,795.85,795.19,0.21841667]
[1754834364527,0.81925183,795.64,795.19,0.21841667]
[1754834365232,0.81925183,795.61,795.19,0.21841667]
[1754834366229,0.81925183,795.58,795.19,0.21841667]
[1754834367233,0.81925183,795.57,795.19,0.21841667]
[1754834367430,0.81925183,795.56,795.19,0.21841667]
[1754834368431,0.81925183,795.55,795.19,0.21841667]
[1754834368835,0.81925183,795.56,795.19,0.21841667]
[1754834369238,0.81925183,795.63,795.19,0.21841667]
[1754834369630,0.81925183,795.65,795.19,0.21841667]
[1754834370231,0.81925183,795.64,795.19,0.21841667]
[1754834370632,0.81925183,795.62,795.19,0.21841667]
[1754834370936,2.7957214,796.57,795.19,0.21841667]
[1754834370937,0.81925183,795.6,795.19,0.21841667]
[1754834371232,0.81925183,795.59,795.19,0.21841667]
[1754834372234,0.81925183,795.56,795.19,0.21841667]
[1754834372438,0.81925183,795.59,795.19,0.21841667]
[1754834372734,0.81925183,795.6,795.19,0.21841667]
[1754834372938,0.81925183,795.62,795.19,0.21841667]
[1754834373834,0.81925183,795.63,795.19,0.21841667]
[1754834374034,0.81925183,795.73,795.19,0.21841667]
[1754834374239,0.81925183,795.72,795.19,0.21841667]
[1754834375437,0.81925183,795.83,795.19,0.21841667]
[1754834375650,0.81925183,795.88,795.19,0.21841667]
[1754834377541,0.81925183,795.9,795.19,0.21841667]
[1754834379542,0.81925183,795.91,795.19,0.21841667]
[1754834380241,0.81925183,795.9,795.19,0.21841667]
[1754834380443,0.81925183,795.91,795.19,0.21841667]
[1754834380639,0.81925183,795.82,795.19,0.21841667]
[1754834381439,0.81925183,795.83,795.19,0.21841667]
[1754834382043,1.1028826,795.97,795.19,0.21841667]
[1754834382240,0.82992195,795.85,795.19,0.21841667]
[1754834382843,1.1028826,796.0,795.19,0.21841667]
[1754834382844,0.82992195,795.84,795.19,0.21841667]
[1754834383345,0.82992195,795.82,795.19,0.21841667]
[1754834385641,0.82992195,795.75,795.19,0.21841667]
[1754834385944,0.82992195,795.78,795.19,0.21841667]
[1754834386247,0.82992195,795.79,795.19,0.21841667]
[1754834386443,0.82992195,795.81,795.19,0.21841667]
[1754834387048,0.82992195,795.87,795.19,0.21841667]
[1754834387248,0.82992195,795.86,795.19,0.21841667]
[1754834387443,1.1028826,796.02,795.19,0.21841667]
[1754834387444,0.82992195,795.87,795.19,0.21841667]
[1754834388346,0.82992195,795.88,795.19,0.21841667]
[1754834389247,0.82992195,795.87,795.19,0.21841667]
[1754834390447,0.82992195,795.92,795.19,0.21841667]
[1754834391251,0.82992195,795.96,795.19,0.21841667]
[1754834391450,0.82992195,795.9,795.19,0.21841667]
[1754834391651,3.91401,797.36,795.19,0.21841667]
[1754834391652,0.82992195,795.89,795.19,0.21841667]
[1754834392450,0.82992195,795.9,795.19,0.21841667]
[1754834392853,0.82992195,795.91,795.19,0.21841667]
[1754834393553,0.82992195,795.92,795.19,0.21841667]
[1754834395354,0.82992195,795.91,795.19,0.21841667]
[1754834396660,0.82992195,795.92,795.19,0.21841667]
[1754834397160,0.82992195,795.91,795.19,0.21841667]
[1754834397961,0.82992195,795.9,795.19,0.21841667]
[1754834398162,0.82992195,795.89,795.19,0.21841667]
[1754834398759,0.82992195,795.88,795.19,0.21841667]
[1754834400163,0.82992195,795.86,795.19,0.21841667]
[1754834400460,0.82992195,795.85,795.19,0.21841667]
[1754834401260,0.82992195,795.84,795.19,0.21841667]
[1754834401564,0.82992195,795.85,795.19,0.21841667]
[1754834401761,0.82992195,795.84,795.19,0.21841667]
[1754834402462,0.82992195,795.82,795.19,0.21841667]
[1754834402767,0.82992195,795.8,795.19,0.21841667]
[1754834403466,0.82992195,795.76,795.19,0.21841667]
[1754834404163,0.82992195,795.73,795.19,0.21841667]
[1754834404468,0.82992195,795.68,795.19,0.21841667]
[1754834404667,0.82992195,795.7,795.19,0.21841667]
[1754834405564,0.82992195,795.68,795.19,0.21841667]
[1754834405764,2.7957214,796.53,795.19,0.21841667]
[1754834405765,0.82992195,795.7,795.19,0.21841667]
[1754834405963,0.62992195,795.7,795.19,0.21841667]
[1754834406466,1.1028826,795.85,795.19,0.21841667]
[1754834406863,1.1028826,795.86,795.19,0.21841667]
[1754834407570,1.1028826,795.85,795.19,0.21841667]
[1754834408569,1.654324,796.01,795.19,0.21841667]
[1754834408570,1.1028826,795.84,795.19,0.21841667]
[1754834408772,1.1028826,795.83,795.19,0.21841667]
[1754834410070,1.1028826,795.82,795.19,0.21841667]
[1754834410471,1.1028826,795.81,795.19,0.21841667]
[1754834411567,1.1028826,795.83,795.19,0.21841667]
[1754834411873,1.1028826,795.78,795.19,0.21841667]
[1754834412267,1.1028826,795.79,795.19,0.21841667]
[1754834412467,1.1028826,795.78,795.19,0.21841667]
[1754834414168,1.1028826,795.77,795.19,0.21841667]
[1754834414773,1.1028826,795.73,795.19,0.21841667]
[1754834415272,1.1028826,795.69,795.19,0.21841667]
[1754834415473,1.1028826,795.75,795.19,0.21841667]
[1754834415969,1.1028826,795.74,795.19,0.21841667]
[1754834416672,1.1028826,795.75,795.19,0.21841667]
[1754834418777,1.1028826,795.76,795.19,0.21841667]
[1754834419277,1.1028826,795.75,795.19,0.21841667]
[1754834422576,1.1028826,795.71,795.19,0.21841667]
[1754834422777,1.1028826,795.69,795.19,0.21841667]
[1754834422975,1.1028826,795.72,795.19,0.21841667]
[1754834424481,1.1028826,795.73,795.19,0.21841667]
[1754834425680,1.1028826,795.64,795.19,0.21841667]
[1754834425877,3.91401,796.93,795.19,0.21841667]
[1754834425878,1.1028826,795.62,795.19,0.21841667]
[1754834426177,1.1028826,795.61,795.19,0.21841667]